[Event "Masterklassen 2025"]
[Site "Uppsala, Sweden"]
[Date "2025.07.01"]
[Round "4.2"]
[White "Crevatin, Leo"]
[Black "Jonsson, Jacob"]
[Result "1-0"]
[TimeControl "90 min for 40 move + 30 min with an increment of 30 sec starting move 1"]
[WhiteTitle "FM"]
[WhiteFideId "1726307"]
[BlackFideId "1726315"]
[WhiteElo "2248"]
[BlackElo "2112"]

1. d4 {[%clk 01:29:17]} {[%emt 00:01:37]} Nf6 {[%clk 01:30:56]} {[%emt
00:00:09]} 2. c4 {[%clk 01:29:43]} {[%emt 00:00:04]} e6 {[%clk 01:31:23]}
{[%emt 00:00:04]} 3. Nf3 {[%clk 01:30:10]} {[%emt 00:00:02]} d5 {[%clk
01:31:49]} {[%emt 00:00:04]} 4. g3 {[%clk 01:30:34]} {[%emt 00:00:05]} h6
{[%clk 01:32:16]} {[%emt 00:00:04]} 5. Bg2 {[%clk 01:29:53]} {[%emt 00:01:11]}
Bd6 {[%clk 01:32:42]} {[%emt 00:00:05]} 6. O-O {[%clk 01:28:56]} {[%emt
00:01:26]} O-O {[%clk 01:33:08]} {[%emt 00:00:04]} 7. b3 {[%clk 01:25:58]}
{[%emt 00:03:28]} b6 {[%clk 01:33:34]} {[%emt 00:00:05]} 8. Bb2 {[%clk
01:24:10]} {[%emt 00:02:17]} Bb7 {[%clk 01:33:57]} {[%emt 00:00:07]} 9. Nc3
{[%clk 01:20:13]} {[%emt 00:04:27]} Re8 {[%clk 01:34:21]} {[%emt 00:00:06]} 10.
Rc1 {[%clk 01:19:24]} {[%emt 00:01:19]} Bf8 {[%clk 01:26:52]} {[%emt 00:07:59]}
11. Ne5 {[%clk 01:14:50]} {[%emt 00:05:03]} Nbd7 {[%clk 01:25:02]} {[%emt
00:02:20]} 12. cxd5 {[%clk 01:06:35]} {[%emt 00:08:47]} exd5 {[%clk 01:16:52]}
{[%emt 00:08:39]} 13. f4 {[%clk 00:54:54]} {[%emt 00:12:11]} c5 {[%clk
00:58:19]} {[%emt 00:19:03]} 14. e3 {[%clk 00:55:15]} {[%emt 00:00:09]} Rc8
{[%clk 00:57:35]} {[%emt 00:01:14]} 15. a3 {[%clk 00:45:43]} {[%emt 00:10:02]}
Ba8 {[%clk 00:46:28]} {[%emt 00:11:37]} 16. Re1 {[%clk 00:39:41]} {[%emt
00:06:32]} Rb8 {[%clk 00:21:20]} {[%emt 00:25:38]} 17. Bf1 {[%clk 00:30:12]}
{[%emt 00:09:59]} Nxe5 {[%clk 00:18:13]} {[%emt 00:03:37]} 18. dxe5 {[%clk
00:29:01]} {[%emt 00:01:41]} Nh7 {[%clk 00:16:51]} {[%emt 00:01:52]} 19. Bg2
{[%clk 00:26:04]} {[%emt 00:03:27]} d4 {[%clk 00:16:07]} {[%emt 00:01:13]} 20.
exd4 {[%clk 00:22:08]} {[%emt 00:04:27]} Bxg2 {[%clk 00:13:06]} {[%emt
00:03:31]} 21. Kxg2 {[%clk 00:22:32]} {[%emt 00:00:06]} cxd4 {[%clk 00:13:24]}
{[%emt 00:00:12]} 22. Ne4 {[%clk 00:21:52]} {[%emt 00:01:09]} Qd5 {[%clk
00:12:34]} {[%emt 00:01:21]} 23. Qxd4 {[%clk 00:20:38]} {[%emt 00:01:43]} Qxb3
{[%clk 00:10:54]} {[%emt 00:02:11]} 24. Re3 {[%clk 00:18:24]} {[%emt 00:02:44]}
Qe6 {[%clk 00:09:06]} {[%emt 00:02:18]} 25. Nd6 {[%clk 00:15:49]} {[%emt
00:03:05]} Re7 {[%clk 00:07:13]} {[%emt 00:02:23]} 26. Rce1 {[%clk 00:13:54]}
{[%emt 00:02:25]} Rc7 {[%clk 00:06:10]} {[%emt 00:01:33]} 27. R1e2 {[%clk
00:13:15]} {[%emt 00:01:10]} Qd7 {[%clk 00:05:22]} {[%emt 00:01:16]} 28. Rd2
{[%clk 00:09:49]} {[%emt 00:03:57]} Qc6+ {[%clk 00:05:41]} {[%emt 00:00:11]} 29.
Qe4 {[%clk 00:09:03]} {[%emt 00:01:16]} Qxe4+ {[%clk 00:05:23]} {[%emt
00:00:48]} 30. Rxe4 {[%clk 00:09:15]} {[%emt 00:00:17]} Be7 {[%clk 00:05:42]}
{[%emt 00:00:11]} 31. h4 {[%clk 00:06:06]} {[%emt 00:03:40]} Nf8 {[%clk
00:05:20]} {[%emt 00:00:52]} 32. f5 {[%clk 00:06:28]} {[%emt 00:00:08]} Rd7
{[%clk 00:04:13]} {[%emt 00:01:37]} 33. Rde2 {[%clk 00:04:11]} {[%emt
00:02:48]} Bxd6 {[%clk 00:03:37]} {[%emt 00:01:05]} 34. exd6 {[%clk 00:04:36]}
{[%emt 00:00:05]} f6 {[%clk 00:04:02]} {[%emt 00:00:04]} 35. Bc1 {[%clk
00:03:33]} {[%emt 00:01:34]} h5 {[%clk 00:02:09]} {[%emt 00:02:22]} 36. Bf4
{[%clk 00:03:34]} {[%emt 00:00:29]} Rc8 {[%clk 00:01:59]} {[%emt 00:00:41]} 37.
Re7 {[%clk 00:03:08]} {[%emt 00:00:56]} Rcd8 {[%clk 00:01:32]} {[%emt
00:00:57]} 38. Rc2 {[%clk 00:02:28]} {[%emt 00:01:11]} b5 {[%clk 00:01:20]}
{[%emt 00:00:41]} 39. Rc5 {[%clk 00:01:33]} {[%emt 00:01:24]} a6 {[%clk
00:01:25]} {[%emt 00:00:26]} 40. Rc6 {[%clk 00:01:16]} {[%emt 00:00:46]} a5
{[%clk 00:01:15]} {[%emt 00:00:42]} 41. Rb6 {[%clk 00:27:10]} {[%emt 00:04:35]}
b4 {[%clk 00:30:39]} {[%emt 00:01:06]} 42. axb4 {[%clk 00:24:38]} {[%emt
00:03:02]} axb4 {[%clk 00:31:04]} {[%emt 00:00:06]} 43. Rxb4 {[%clk 00:25:02]}
{[%emt 00:00:05]} Rc8 {[%clk 00:30:57]} {[%emt 00:00:37]} 44. Kf3 {[%clk
00:18:35]} {[%emt 00:06:57]} Rcd8 {[%clk 00:26:27]} {[%emt 00:05:01]} 45. Rc4
{[%clk 00:15:26]} {[%emt 00:03:38]} g6 {[%clk 00:20:29]} {[%emt 00:06:28]} 46.
g4 {[%clk 00:10:22]} {[%emt 00:05:35]} hxg4+ {[%clk 00:12:32]} {[%emt
00:08:26]} 47. Kxg4 {[%clk 00:10:46]} {[%emt 00:00:05]} Ra8 {[%clk 00:11:45]}
{[%emt 00:01:18]} 48. Rc7 {[%clk 00:10:49]} {[%emt 00:00:28]} gxf5+ {[%clk
00:11:40]} {[%emt 00:00:34]} 49. Kxf5 {[%clk 00:10:58]} {[%emt 00:00:21]} Rxe7
{[%clk 00:08:52]} {[%emt 00:03:18]} 50. dxe7 {[%clk 00:10:04]} {[%emt
00:01:24]} Nh7 {[%clk 00:07:42]} {[%emt 00:01:39]} 51. Kg6 {[%clk 00:07:21]}
{[%emt 00:03:13]} f5 {[%clk 00:07:44]} {[%emt 00:00:29]} 52. Rd7 {[%clk
00:07:23]} {[%emt 00:00:27]} Ra6+ {[%clk 00:08:02]} {[%emt 00:00:13]} 53. Bd6
{[%clk 00:06:30]} {[%emt 00:01:22]} 1-0

[Event "Masterklassen 2025"]
[Site "Uppsala, Sweden"]
[Date "2025.07.01"]
[Round "4.3"]
[White "Kingsley, Elias"]
[Black "Hammarstrom, Ulf"]
[Result "0-1"]
[TimeControl "90 min for 40 move + 30 min with an increment of 30 sec starting move 1"]
[WhiteFideId "1775006"]
[BlackFideId "1710214"]
[WhiteElo "2072"]
[BlackElo "2176"]

1. Nf3 {[%clk 01:30:55]} {[%emt 00:00:04]} Nf6 {[%clk 01:23:29]} {[%emt
00:07:31]} 2. b3 {[%clk 01:31:17]} {[%emt 00:00:08]} c5 {[%clk 01:23:54]}
{[%emt 00:00:06]} 3. c4 {[%clk 01:30:16]} {[%emt 00:01:31]} Nc6 {[%clk
01:23:49]} {[%emt 00:00:35]} 4. Bb2 {[%clk 01:30:19]} {[%emt 00:00:27]} d5
{[%clk 01:23:51]} {[%emt 00:00:28]} 5. cxd5 {[%clk 01:30:39]} {[%emt 00:00:10]}
Nxd5 {[%clk 01:24:07]} {[%emt 00:00:13]} 6. g3 {[%clk 01:29:49]} {[%emt
00:01:22]} f6 {[%clk 01:23:31]} {[%emt 00:01:05]} 7. Bg2 {[%clk 01:19:23]}
{[%emt 00:10:57]} e5 {[%clk 01:23:09]} {[%emt 00:00:52]} 8. d3 {[%clk
01:19:24]} {[%emt 00:00:28]} Be6 {[%clk 01:21:05]} {[%emt 00:02:34]} 9. Nbd2
{[%clk 01:19:39]} {[%emt 00:00:14]} Be7 {[%clk 01:21:13]} {[%emt 00:00:23]} 10.
a3 {[%clk 01:18:45]} {[%emt 00:01:24]} O-O {[%clk 01:20:07]} {[%emt 00:01:37]}
11. Qc2 {[%clk 01:17:40]} {[%emt 00:01:34]} Nd4 {[%clk 01:15:50]} {[%emt
00:04:46]} 12. Qd1 {[%clk 01:07:49]} {[%emt 00:10:21]} Qd7 {[%clk 01:11:18]}
{[%emt 00:05:02]} 13. O-O {[%clk 01:07:29]} {[%emt 00:00:50]} Rac8 {[%clk
01:00:01]} {[%emt 00:11:48]} 14. e3 {[%clk 01:06:29]} {[%emt 00:01:30]} Nc6
{[%clk 00:58:23]} {[%emt 00:02:09]} 15. Qc2 {[%clk 01:05:17]} {[%emt 00:01:41]}
Rfd8 {[%clk 00:53:21]} {[%emt 00:05:32]} 16. Rfd1 {[%clk 01:04:35]} {[%emt
00:01:10]} Nc7 {[%clk 00:50:15]} {[%emt 00:03:38]} 17. Ne4 {[%clk 01:03:53]}
{[%emt 00:01:11]} Na5 {[%clk 00:48:31]} {[%emt 00:02:16]} 18. Qc3 {[%clk
00:53:02]} {[%emt 00:11:20]} Nxb3 {[%clk 00:45:13]} {[%emt 00:03:48]} 19. Rab1
{[%clk 00:52:28]} {[%emt 00:01:04]} 0-1

[Event "Masterklassen 2025"]
[Site "Uppsala, Sweden"]
[Date "2025.07.01"]
[Round "4.4"]
[White "Johnson, Daniel"]
[Black "Dingertz, Erik"]
[Result "1/2-1/2"]
[TimeControl "90 min for 40 move + 30 min with an increment of 30 sec starting move 1"]
[WhiteFideId "1721283"]
[BlackFideId "1741578"]
[WhiteElo "2175"]
[BlackElo "2121"]

1. d4 {[%clk 01:24:41]} {[%emt 00:06:11]} Nf6 {[%clk 01:30:05]} {[%emt
00:01:02]} 2. c4 {[%clk 01:24:58]} {[%emt 00:00:14]} e6 {[%clk 01:30:32]}
{[%emt 00:00:04]} 3. Nc3 {[%clk 01:25:11]} {[%emt 00:00:16]} d5 {[%clk
01:30:55]} {[%emt 00:00:07]} 4. cxd5 {[%clk 01:24:56]} {[%emt 00:00:44]} exd5
{[%clk 01:31:20]} {[%emt 00:00:06]} 5. Bg5 {[%clk 01:25:07]} {[%emt 00:00:19]}
c6 {[%clk 01:31:27]} {[%emt 00:00:23]} 6. e3 {[%clk 01:24:22]} {[%emt
00:01:15]} h6 {[%clk 01:31:49]} {[%emt 00:00:08]} 7. Bh4 {[%clk 01:24:39]}
{[%emt 00:00:13]} Be7 {[%clk 01:32:14]} {[%emt 00:00:05]} 8. Qc2 {[%clk
01:23:28]} {[%emt 00:01:40]} O-O {[%clk 01:32:29]} {[%emt 00:00:16]} 9. Bd3
{[%clk 01:23:23]} {[%emt 00:00:35]} Ne8 {[%clk 01:31:31]} {[%emt 00:01:29]} 10.
Bxe7 {[%clk 01:19:33]} {[%emt 00:04:19]} Qxe7 {[%clk 01:31:58]} {[%emt
00:00:03]} 11. Nxd5 {[%clk 01:18:09]} {[%emt 00:01:55]} cxd5 {[%clk 01:32:24]}
{[%emt 00:00:03]} 12. Qxc8 {[%clk 01:18:31]} {[%emt 00:00:08]} Nc6 {[%clk
01:32:50]} {[%emt 00:00:04]} 13. Qf5 {[%clk 01:18:50]} {[%emt 00:00:10]} Qb4+
{[%clk 01:33:00]} {[%emt 00:00:20]} 14. Kf1 {[%clk 01:17:56]} {[%emt 00:01:24]}
Nf6 {[%clk 01:33:20]} {[%emt 00:00:10]} 15. g4 {[%clk 01:06:51]} {[%emt
00:11:35]} Ne7 {[%clk 01:21:56]} {[%emt 00:11:54]} 16. Qf3 {[%clk 01:06:21]}
{[%emt 00:01:00]} Qxb2 {[%clk 01:22:10]} {[%emt 00:00:16]} 17. Rd1 {[%clk
01:06:01]} {[%emt 00:00:50]} Rac8 {[%clk 01:16:21]} {[%emt 00:06:20]} 18. Ne2
{[%clk 00:59:02]} {[%emt 00:07:28]} Ne4 {[%clk 01:02:42]} {[%emt 00:14:10]} 19.
Bxe4 {[%clk 00:52:40]} {[%emt 00:06:52]} dxe4 {[%clk 01:03:08]} {[%emt
00:00:04]} 20. Qxe4 {[%clk 00:52:39]} {[%emt 00:00:30]} Rc2 {[%clk 01:03:35]}
{[%emt 00:00:04]} 21. Re1 {[%clk 00:37:59]} {[%emt 00:15:10]} Nc6 {[%clk
01:00:13]} {[%emt 00:03:52]} 22. h4 {[%clk 00:32:40]} {[%emt 00:05:48]} Na5
{[%clk 00:56:47]} {[%emt 00:03:57]} 23. g5 {[%clk 00:23:40]} {[%emt 00:09:29]}
Nc4 {[%clk 00:55:12]} {[%emt 00:02:06]} 24. Qd3 {[%clk 00:21:34]} {[%emt
00:02:36]} h5 {[%clk 00:55:29]} {[%emt 00:00:13]} 25. Kg2 {[%clk 00:17:23]}
{[%emt 00:04:39]} Re8 {[%clk 00:49:13]} {[%emt 00:06:48]} 26. e4 {[%clk
00:10:36]} {[%emt 00:07:16]} b5 {[%clk 00:41:20]} {[%emt 00:08:23]} 27. Qf3
{[%clk 00:01:00]} {[%emt 00:10:06]} Nd2 {[%clk 00:35:03]} {[%emt 00:06:48]} 28.
Qxh5 {[%clk 00:01:12]} {[%emt 00:00:18]} Nxe4 {[%clk 00:34:58]} {[%emt
00:00:35]} 29. Qf3 {[%clk 00:00:32]} {[%emt 00:01:10]} Nd2 {[%clk 00:33:46]}
{[%emt 00:01:42]} 30. Qf5 {[%clk 00:00:31]} {[%emt 00:00:30]} Nc4 {[%clk
00:33:14]} {[%emt 00:01:03]} 31. Ng3 {[%clk 00:00:38]} {[%emt 00:00:23]} Ne3+
{[%clk 00:33:03]} {[%emt 00:00:41]} 32. Rxe3 {[%clk 00:00:44]} {[%emt
00:00:24]} Rxe3 {[%clk 00:33:29]} {[%emt 00:00:04]} 33. h5 {[%clk 00:00:42]}
{[%emt 00:00:32]} Rcc3 {[%clk 00:24:30]} {[%emt 00:09:29]} 34. Rh3 {[%clk
00:00:42]} {[%emt 00:00:29]} Rf3 {[%clk 00:24:26]} {[%emt 00:00:34]} 35. Qxf3
{[%clk 00:00:31]} {[%emt 00:00:41]} Rxf3 {[%clk 00:24:52]} {[%emt 00:00:04]} 36.
Kxf3 {[%clk 00:00:57]} {[%emt 00:00:05]} Qxd4 {[%clk 00:25:04]} {[%emt
00:00:18]} 37. h6 {[%clk 00:00:37]} {[%emt 00:00:49]} Qd5+ {[%clk 00:24:38]}
{[%emt 00:00:56]} 38. Kf4 {[%clk 00:00:31]} {[%emt 00:00:36]} Qd2+ {[%clk
00:22:49]} {[%emt 00:02:18]} 39. Kf3 {[%clk 00:00:31]} {[%emt 00:00:32]} gxh6
{[%clk 00:18:14]} {[%emt 00:05:05]} 40. gxh6 {[%clk 00:00:47]} {[%emt
00:00:13]} Kh7 {[%clk 00:18:32]} {[%emt 00:00:12]} 41. Ne4 {[%clk 00:27:42]}
{[%emt 00:03:35]} Qxa2 {[%clk 00:39:25]} {[%emt 00:09:38]} 42. Nf6+ {[%clk
00:27:03]} {[%emt 00:01:08]} Kg6 {[%clk 00:35:12]} {[%emt 00:04:43]} 43. Kg2
{[%clk 00:19:24]} {[%emt 00:08:10]} Kxf6 {[%clk 00:35:21]} {[%emt 00:00:20]} 44.
h7 {[%clk 00:19:50]} {[%emt 00:00:04]} Qd5+ {[%clk 00:35:35]} {[%emt 00:00:16]}
45. Kg1 {[%clk 00:16:02]} {[%emt 00:04:19]} Qd1+ {[%clk 00:34:58]} {[%emt
00:01:05]} 46. Kh2 {[%clk 00:16:23]} {[%emt 00:00:10]} Qd6+ {[%clk 00:35:14]}
{[%emt 00:00:14]} 47. Kg1 {[%clk 00:16:26]} {[%emt 00:00:27]} Qd1+ {[%clk
00:35:30]} {[%emt 00:00:14]} 48. Kh2 {[%clk 00:16:51]} {[%emt 00:00:05]} Qd6+
{[%clk 00:35:57]} {[%emt 00:00:03]} 49. Kg1 {[%clk 00:17:17]} {[%emt 00:00:05]}
1/2-1/2

[Event "Masterklassen 2025"]
[Site "Uppsala, Sweden"]
[Date "2025.07.01"]
[Round "4.5"]
[White "Nygren, David"]
[Black "Eriksson, Jorgen"]
[Result "0-1"]
[TimeControl "90 min for 40 move + 30 min with an increment of 30 sec starting move 1"]
[WhiteFideId "1704761"]
[BlackFideId "1701967"]
[WhiteElo "2094"]
[BlackElo "2160"]

1. e4 {[%clk 01:30:47]} {[%emt 00:00:12]} c5 {[%clk 01:30:21]} {[%emt
00:00:39]} 2. c3 {[%clk 01:31:09]} {[%emt 00:00:09]} d5 {[%clk 01:30:22]}
{[%emt 00:00:29]} 3. Na3 {[%clk 01:31:21]} {[%emt 00:00:17]} e6 {[%clk
01:26:22]} {[%emt 00:04:31]} 4. d3 {[%clk 01:30:42]} {[%emt 00:01:09]} Nc6
{[%clk 01:15:54]} {[%emt 00:10:58]} 5. Nf3 {[%clk 01:26:26]} {[%emt 00:04:46]}
Nf6 {[%clk 01:01:28]} {[%emt 00:14:56]} 6. Bf4 {[%clk 01:21:01]} {[%emt
00:05:55]} a6 {[%clk 01:00:32]} {[%emt 00:01:27]} 7. Qe2 {[%clk 01:14:46]}
{[%emt 00:06:44]} Be7 {[%clk 00:59:08]} {[%emt 00:01:53]} 8. g4 {[%clk
01:12:25]} {[%emt 00:02:52]} c4 {[%clk 00:51:53]} {[%emt 00:07:45]} 9. e5
{[%clk 01:09:06]} {[%emt 00:03:49]} cxd3 {[%clk 00:51:00]} {[%emt 00:01:22]} 10.
Qxd3 {[%clk 01:08:27]} {[%emt 00:01:10]} Ne4 {[%clk 00:46:50]} {[%emt
00:04:40]} 11. Nd2 {[%clk 00:58:38]} {[%emt 00:10:19]} Qb6 {[%clk 00:39:24]}
{[%emt 00:07:55]} 12. Nxe4 {[%clk 00:54:11]} {[%emt 00:04:58]} Qxb2 {[%clk
00:29:43]} {[%emt 00:10:11]} 13. Nc2 {[%clk 00:40:31]} {[%emt 00:14:10]} dxe4
{[%clk 00:29:36]} {[%emt 00:00:36]} 14. Qxe4 {[%clk 00:28:24]} {[%emt
00:12:38]} Qxc3+ {[%clk 00:29:23]} {[%emt 00:00:42]} 15. Kd1 {[%clk 00:24:59]}
{[%emt 00:03:55]} g5 {[%clk 00:17:31]} {[%emt 00:12:22]} 16. Bg3 {[%clk
00:23:08]} {[%emt 00:02:21]} Nb4 {[%clk 00:17:20]} {[%emt 00:00:42]} 17. Rc1
{[%clk 00:21:18]} {[%emt 00:02:21]} Nxa2 {[%clk 00:15:15]} {[%emt 00:02:34]} 18.
Qa4+ {[%clk 00:11:31]} {[%emt 00:10:16]} Bd7 {[%clk 00:15:30]} {[%emt
00:00:15]} 19. Qxa2 {[%clk 00:11:29]} {[%emt 00:00:33]} Bc6 {[%clk 00:15:06]}
{[%emt 00:00:53]} 0-1

[Event "Masterklassen 2025"]
[Site "Uppsala, Sweden"]
[Date "2025.07.01"]
[Round "4.6"]
[White "Malm, Simon"]
[Black "Muntean, Victor"]
[Result "0-1"]
[TimeControl "90 min for 40 move + 30 min with an increment of 30 sec starting move 1"]
[WhiteFideId "1759825"]
[BlackFideId "1054414"]
[WhiteElo "2007"]
[BlackElo "2140"]

1. d4 {[%clk 01:30:57]} {[%emt 00:00:02]} d6 {[%clk 01:30:56]} {[%emt
00:00:05]} 2. c4 {[%clk 01:30:42]} {[%emt 00:00:44]} e5 {[%clk 01:31:20]}
{[%emt 00:00:06]} 3. d5 {[%clk 01:30:22]} {[%emt 00:00:50]} f5 {[%clk
01:31:23]} {[%emt 00:00:27]} 4. Nc3 {[%clk 01:27:38]} {[%emt 00:03:14]} Nf6
{[%clk 01:31:28]} {[%emt 00:00:25]} 5. e4 {[%clk 01:26:44]} {[%emt 00:01:24]}
Nxe4 {[%clk 01:27:18]} {[%emt 00:04:41]} 6. Nxe4 {[%clk 01:23:48]} {[%emt
00:03:26]} fxe4 {[%clk 01:27:42]} {[%emt 00:00:06]} 7. Ne2 {[%clk 01:23:24]}
{[%emt 00:00:54]} Bf5 {[%clk 01:26:44]} {[%emt 00:01:28]} 8. Ng3 {[%clk
01:22:51]} {[%emt 00:01:02]} Bg6 {[%clk 01:26:37]} {[%emt 00:00:37]} 9. h4
{[%clk 01:21:55]} {[%emt 00:01:27]} Qd7 {[%clk 01:04:58]} {[%emt 00:22:08]} 10.
Be2 {[%clk 01:11:16]} {[%emt 00:11:09]} h5 {[%clk 00:57:18]} {[%emt 00:08:10]}
11. Nxh5 {[%clk 01:06:06]} {[%emt 00:05:40]} Na6 {[%clk 00:56:50]} {[%emt
00:00:59]} 12. Bg4 {[%clk 00:48:54]} {[%emt 00:17:41]} Bf5 {[%clk 00:55:19]}
{[%emt 00:02:01]} 13. Bxf5 {[%clk 00:49:18]} {[%emt 00:00:06]} Qxf5 {[%clk
00:55:44]} {[%emt 00:00:06]} 14. Ng3 {[%clk 00:49:42]} {[%emt 00:00:05]} Qd7
{[%clk 00:46:30]} {[%emt 00:09:44]} 15. Nxe4 {[%clk 00:46:42]} {[%emt
00:03:30]} Be7 {[%clk 00:46:51]} {[%emt 00:00:09]} 16. Be3 {[%clk 00:43:43]}
{[%emt 00:03:28]} O-O-O {[%clk 00:42:06]} {[%emt 00:05:15]} 17. g3 {[%clk
00:31:29]} {[%emt 00:12:44]} Qf5 {[%clk 00:41:10]} {[%emt 00:01:26]} 18. Qc2
{[%clk 00:31:36]} {[%emt 00:00:23]} Qf3 {[%clk 00:40:58]} {[%emt 00:00:42]} 19.
Rg1 {[%clk 00:26:51]} {[%emt 00:05:15]} Qg4 {[%clk 00:34:28]} {[%emt 00:07:01]}
20. Rf1 {[%clk 00:26:25]} {[%emt 00:00:56]} Rdf8 {[%clk 00:33:10]} {[%emt
00:01:48]} 21. a3 {[%clk 00:25:29]} {[%emt 00:01:27]} g5 {[%clk 00:27:16]}
{[%emt 00:06:23]} 22. hxg5 {[%clk 00:24:56]} {[%emt 00:01:03]} Rh2 {[%clk
00:26:02]} {[%emt 00:01:45]} 23. b4 {[%clk 00:18:46]} {[%emt 00:06:39]} Rf3
{[%clk 00:24:23]} {[%emt 00:02:09]} 24. Qd3 {[%clk 00:17:32]} {[%emt 00:01:45]}
Bxg5 {[%clk 00:24:01]} {[%emt 00:00:51]} 25. Nxg5 {[%clk 00:17:12]} {[%emt
00:00:49]} Qxg5 {[%clk 00:24:26]} {[%emt 00:00:06]} 26. O-O-O {[%clk 00:14:32]}
{[%emt 00:03:10]} Qg4 {[%clk 00:22:04]} {[%emt 00:02:52]} 27. Rh1 {[%clk
00:14:01]} {[%emt 00:01:01]} Rhxf2 {[%clk 00:22:06]} {[%emt 00:00:29]} 28. Rh4
{[%clk 00:10:35]} {[%emt 00:03:55]} Qg7 {[%clk 00:16:53]} {[%emt 00:05:43]} 29.
Rdh1 {[%clk 00:06:29]} {[%emt 00:04:37]} e4 {[%clk 00:11:55]} {[%emt 00:05:28]}
30. Rh8+ {[%clk 00:05:49]} {[%emt 00:01:09]} Rf8 {[%clk 00:12:20]} {[%emt
00:00:05]} 31. Rxf8+ {[%clk 00:03:55]} {[%emt 00:02:25]} Rxf8 {[%clk 00:12:39]}
{[%emt 00:00:10]} 32. Qxe4 {[%clk 00:02:22]} {[%emt 00:02:03]} Qa1+ {[%clk
00:11:34]} {[%emt 00:01:35]} 33. Kd2 {[%clk 00:01:55]} {[%emt 00:00:57]} Qxa3
{[%clk 00:11:54]} {[%emt 00:00:10]} 34. Qe6+ {[%clk 00:00:41]} {[%emt
00:01:45]} Kb8 {[%clk 00:12:14]} {[%emt 00:00:10]} 35. Qe7 {[%clk 00:00:43]}
{[%emt 00:00:28]} Qb2+ {[%clk 00:11:55]} {[%emt 00:00:48]} 36. Kd1 {[%clk
00:00:42]} {[%emt 00:00:31]} Rc8 {[%clk 00:12:01]} {[%emt 00:00:23]} 37. Rh4
{[%clk 00:00:33]} {[%emt 00:00:40]} Nxb4 {[%clk 00:11:58]} {[%emt 00:00:33]} 38.
Qe4 {[%clk 00:00:41]} {[%emt 00:00:23]} Na2 {[%clk 00:10:16]} {[%emt 00:02:12]}
39. Qc2 {[%clk 00:00:40]} {[%emt 00:00:31]} Qa1+ {[%clk 00:10:21]} {[%emt
00:00:24]} 40. Kd2 {[%clk 00:00:32]} {[%emt 00:00:38]} Re8 {[%clk 00:08:59]}
{[%emt 00:01:52]} 41. Bxa7+ {[%clk 00:12:37]} {[%emt 00:18:25]} Ka8 {[%clk
00:38:10]} {[%emt 00:01:19]} 42. Bf2 {[%clk 00:11:26]} {[%emt 00:01:41]} Nb4
{[%clk 00:36:57]} {[%emt 00:01:43]} 43. Qb3 {[%clk 00:09:59]} {[%emt 00:01:57]}
Qa5 {[%clk 00:35:37]} {[%emt 00:01:50]} 44. Kd1 {[%clk 00:05:38]} {[%emt
00:04:51]} Na2 {[%clk 00:35:43]} {[%emt 00:00:24]} 45. Rh1 {[%clk 00:01:57]}
{[%emt 00:04:11]} Nc3+ {[%clk 00:35:21]} {[%emt 00:00:52]} 46. Kc1 {[%clk
00:02:11]} {[%emt 00:00:16]} Qa1+ {[%clk 00:34:51]} {[%emt 00:01:00]} 47. Kd2
{[%clk 00:01:25]} {[%emt 00:01:16]} Qxh1 {[%clk 00:35:10]} {[%emt 00:00:11]} 48.
Qxc3 {[%clk 00:01:01]} {[%emt 00:00:54]} Qg2 {[%clk 00:34:23]} {[%emt
00:01:16]} 49. Qd4 {[%clk 00:00:32]} {[%emt 00:01:00]} b6 {[%clk 00:34:04]}
{[%emt 00:00:49]} 50. c5 {[%clk 00:00:52]} {[%emt 00:00:10]} Rf8 {[%clk
00:34:16]} {[%emt 00:00:18]} 51. Ke2 {[%clk 00:00:39]} {[%emt 00:00:43]} Qf3+
{[%clk 00:33:57]} {[%emt 00:00:49]} 52. Kf1 {[%clk 00:00:48]} {[%emt 00:00:21]}
dxc5 {[%clk 00:34:03]} {[%emt 00:00:23]} 53. Qa4+ {[%clk 00:00:39]} {[%emt
00:00:39]} Kb8 {[%clk 00:34:24]} {[%emt 00:00:10]} 54. Qa2 {[%clk 00:00:42]}
{[%emt 00:00:27]} Rh8 {[%clk 00:34:10]} {[%emt 00:00:43]} 0-1